bitfinex/quotes_ETHUSD_20251215
["timestamp","ask_amount","ask_price","bid_price","bid_amount"]
[1765781684416,44.47523624,3142.0,3141.9,0.001]
[1765781684591,47.65792242,3142.0,3141.9,0.001]
[1765781684792,47.78545575,3142.0,3141.9,0.001]
[1765781685601,47.78545575,3142.0,3140.9,0.001]
[1765781685602,3.756504,3141.8,3140.9,0.001]
[1765781685826,31.80201971,3141.8,3140.9,0.001]
[1765781686031,34.25000158,3141.8,3140.9,0.001]
[1765781686231,34.37753775,3141.8,3140.9,0.001]
[1765781686605,37.56042653,3141.8,3140.9,0.001]
[1765781687404,37.56042653,3141.8,3141.1,0.132]
[1765781687405,17.6235317,3141.3,3141.1,0.132]
[1765781687611,25.22441287,3141.3,3141.1,0.132]
[1765781687834,25.22441287,3141.3,3141.2,0.4749]
[1765781688147,23.77675887,3141.3,3141.2,0.4749]
[1765781688841,26.30785427,3141.3,3141.2,0.4749]
[1765781689152,26.81285427,3141.3,3141.2,0.4749]
[1765781689455,26.81596042,3141.3,3141.2,0.4749]
[1765781689777,11.61959986,3141.3,3141.2,0.4749]
[1765781690034,14.57356442,3141.3,3141.2,0.4749]
[1765781690927,38.11485042,3141.3,3141.2,0.4749]
[1765781691239,37.60985042,3141.3,3141.2,0.4749]
[1765781691531,38.11485042,3141.3,3141.2,0.4749]
[1765781691735,38.58375042,3141.3,3141.2,0.001]
[1765781692108,38.11485042,3141.3,3141.2,0.4749]
[1765781692338,44.44285042,3141.3,3141.2,0.4749]
[1765781694133,44.42635042,3141.3,3141.2,0.4749]
[1765781694345,29.37870942,3141.3,3141.2,0.4749]
[1765781694848,30.39543242,3141.3,3141.2,0.4749]
[1765781695748,17.97297142,3141.3,3141.2,0.4749]
[1765781695950,30.39543242,3141.3,3141.2,0.4749]
[1765781696168,30.86433242,3141.3,3141.2,0.001]
[1765781696451,39.08007598,3141.3,3141.2,0.001]
[1765781696811,53.61699398,3141.3,3141.2,0.001]
[1765781697936,53.61699398,3141.3,3140.3,0.001]
[1765781697937,9.99293685,3140.5,3140.3,0.001]
[1765781698124,9.99293685,3140.5,3140.4,0.4816]
[1765781698125,10.49893685,3140.5,3140.4,0.4816]
[1765781698451,6.11529329,3140.5,3140.4,0.4816]
[1765781698633,6.59689329,3140.5,3140.4,0.9355]
[1765781698944,11.06635962,3140.5,3140.4,0.9355]
[1765781699841,11.06635962,3140.5,3140.4,0.4816]
[1765781700042,14.40874262,3140.5,3140.4,0.9355]
[1765781701049,13.97951656,3140.5,3140.4,0.9355]
[1765781701353,13.49381656,3140.5,3140.4,0.9355]
[1765781702032,16.37411956,3140.5,3140.4,0.9355]
[1765781702646,11.94736056,3140.5,3140.4,0.9355]
[1765781702848,18.27536056,3140.5,3140.4,0.9355]
[1765781703058,29.33056956,3140.5,3140.4,0.001]
[1765781703212,29.33056956,3140.5,3140.4,0.4816]
[1765781703613,29.82356956,3140.5,3140.4,0.001]
[1765781703842,33.66846956,3140.5,3140.4,0.001]
[1765781704144,44.78202156,3140.5,3140.4,0.001]
[1765781707019,49.16566512,3140.5,3140.4,0.001]
[1765781707416,44.78202156,3140.5,3140.4,0.001]
[1765781707956,31.29635829,3140.4,3140.3,0.001]
[1765781708131,38.48414137,3140.4,3140.3,0.001]
[1765781709060,11.52476237,3140.4,3140.3,0.001]
[1765781709218,25.08295854,3140.4,3140.3,0.001]
[1765781709421,24.57695854,3140.4,3140.3,0.001]
[1765781709654,25.57685854,3140.4,3140.3,0.001]
[1765781710228,37.28480554,3140.4,3140.3,0.001]
[1765781710420,37.79080554,3140.4,3140.3,0.001]
[1765781710614,37.28480554,3140.4,3140.3,0.001]
[1765781710835,37.79080554,3140.4,3140.3,0.001]
[1765781712552,31.88088054,3140.4,3140.3,0.001]
[1765781712733,35.7585241,3140.4,3140.3,0.001]
[1765781712928,36.7584241,3140.4,3140.3,0.001]
[1765781713131,43.0864241,3140.4,3140.3,0.001]
[1765781713426,48.5024491,3140.4,3140.3,0.001]
[1765781714053,47.9964491,3140.4,3140.3,0.001]
[1765781714351,48.63004101,3140.4,3140.3,0.001]
[1765781714754,53.01368457,3140.4,3140.3,0.001]
[1765781714921,48.63004101,3140.4,3140.3,0.001]
[1765781715452,44.24639745,3140.4,3140.3,0.001]
[1765781715653,48.63004101,3140.4,3140.3,0.001]
[1765781715852,53.01368457,3140.4,3140.3,0.001]
[1765781717263,46.68568457,3140.4,3140.3,0.001]
[1765781718764,4.33697929,3140.2,3139.7,0.001]
[1765781718923,35.6895882,3140.0,3139.7,0.001]
[1765781719267,34.49065801,3140.0,3139.7,0.001]
[1765781719430,39.50789917,3140.0,3139.7,0.001]
[1765781719986,35.12425561,3140.0,3139.9,0.4816]
[1765781720160,11.12825161,3140.0,3139.9,0.9355]
[1765781720457,15.50018086,3140.0,3139.9,0.9355]
[1765781721342,10.14669986,3140.0,3139.9,0.9355]
[1765781721524,26.71111586,3140.0,3139.9,0.9355]
[1765781721726,24.92311586,3140.0,3139.9,0.9355]
[1765781722454,10.14669986,3140.0,3139.9,0.9355]
[1765781722758,26.71111586,3140.0,3139.9,0.9355]
[1765781722973,27.20411586,3140.0,3139.9,0.001]
[1765781723422,35.21966786,3140.0,3139.9,0.001]
[1765781723623,26.82832686,3140.0,3139.9,0.4816]
[1765781723840,26.82832686,3140.0,3139.9,0.9355]
[1765781724668,16.58373486,3140.0,3139.9,0.9355]
[1765781725568,23.08136286,3140.0,3139.9,0.9355]
[1765781725863,21.16020786,3140.0,3139.9,0.9355]
[1765781726066,19.36227086,3140.0,3139.9,0.9355]
[1765781726272,17.19173386,3140.0,3139.9,0.9355]
[1765781726473,10.68619486,3140.0,3139.9,0.9355]
[1765781726658,3.32189732,3140.0,3139.9,0.9355]
[1765781726849,3.70029972,3140.0,3139.9,0.9355]
[1765781727056,4.68627901,3140.0,3139.9,0.9355]
[1765781727369,4.28077501,3140.0,3139.9,0.9355]
[1765781727583,4.68627901,3140.0,3139.9,0.9355]
[1765781728484,4.18027901,3140.0,3139.9,0.9355]
[1765781728673,4.68627901,3140.0,3139.9,0.4816]
[1765781728878,24.66321765,3140.0,3139.9,0.4816]
[1765781729077,25.14481765,3140.0,3139.9,0.4816]
[1765781729373,29.53141646,3140.0,3139.9,0.9506]
[1765781729742,31.60519246,3140.0,3139.9,0.9506]
[1765781730993,12.53441172,3140.0,3139.9,0.9506]
[1765781731274,11.01427901,3140.0,3139.9,0.9506]
[1765781731457,13.32255101,3140.0,3139.9,0.9506]
[1765781731970,13.30706201,3140.0,3139.9,0.9506]
[1765781732578,10.50827901,3140.0,3139.9,0.9506]
[1765781732883,11.01427901,3140.0,3139.9,0.9506]
[1765781733083,10.50827901,3140.0,3139.9,0.9506]
[1765781733283,11.01427901,3140.0,3139.9,0.9506]
[1765781733946,6.328,3140.0,3139.9,0.9506]
[1765781734146,6.834,3140.0,3139.9,0.9506]
[1765781734342,10.01871337,3140.0,3139.9,0.9506]
[1765781736591,3.1941001,3140.2,3139.9,5.33719881]
[1765781736592,0.506,3140.2,3139.9,5.33719881]
[1765781736752,0.506,3140.2,3140.1,0.6498]
[1765781737271,0.506,3140.2,3140.1,1.1444]
[1765781737770,0.51558635,3140.2,3140.1,1.1444]
[1765781738682,3.70009689,3140.2,3140.1,1.1444]
[1765781739062,4.38873856,3140.2,3140.1,1.1444]
[1765781741485,4.79424256,3140.2,3140.1,1.1444]
[1765781742079,11.12224256,3140.2,3140.1,1.1444]
[1765781742672,0.002,3140.3,3140.1,0.6498]
[1765781742984,0.002,3140.3,3140.2,0.9882]
[1765781743172,0.508,3140.3,3140.2,0.9882]
[1765781744771,0.002,3140.3,3140.2,4.17271054]
[1765781746298,0.002,3140.3,3140.2,0.9882]
[1765781748487,1.13685671,3140.3,3140.2,0.9882]
[1765781748988,4.82626584,3140.3,3140.2,0.9882]
[1765781750300,4.82626584,3140.3,3140.2,0.4936]
[1765781751590,4.82626584,3140.3,3140.2,0.9882]
[1765781751591,0.002,3140.3,3140.2,0.9882]
[1765781751790,0.507,3140.3,3140.2,0.9882]
[1765781752695,4.09691313,3140.3,3140.2,0.4936]
[1765781755028,10.42491313,3140.3,3140.2,0.4936]
[1765781755204,3.18461195,3140.1,3139.9,0.001]
[1765781757202,3.59011595,3140.1,3140.0,0.4701]
[1765781758281,3.59011595,3140.1,3140.0,0.9689]
[1765781758489,4.09511595,3140.1,3140.0,0.9689]
[1765781758999,4.09511595,3140.1,3140.0,0.4701]
[1765781759177,4.9604544,3140.1,3140.0,0.9689]
[1765781760599,4.09511595,3140.1,3140.0,0.9689]
[1765781760905,4.09511595,3140.1,3140.0,0.9699]
[1765781761527,3.59011595,3140.1,3140.0,0.9699]
[1765781761818,4.09511595,3140.1,3140.0,0.9699]
[1765781761988,4.09511595,3140.1,3140.0,0.001]
[1765781762193,4.82423536,3140.1,3140.0,0.001]
[1765781762926,4.82423536,3140.1,3140.0,0.4711]
[1765781763420,5.74373536,3140.1,3140.0,0.001]
[1765781763723,23.40444636,3140.1,3140.0,0.001]
[1765781763921,22.29199136,3140.1,3140.0,0.001]
[1765781764925,22.36746665,3140.1,3140.0,0.001]
[1765781765123,18.92208165,3140.1,3140.0,0.001]
[1765781765296,8.51932165,3140.1,3140.0,0.001]
[1765781765621,8.88826765,3140.1,3140.0,0.001]
[1765781765994,26.80094065,3140.1,3140.0,0.001]
[1765781767025,31.15111165,3140.1,3140.0,0.001]
[1765781767624,29.80124065,3140.1,3140.0,0.001]
[1765781767921,28.34610365,3140.1,3140.0,0.001]
[1765781768112,28.02733465,3140.1,3140.0,0.001]
[1765781769222,33.28358965,3140.1,3140.0,0.001]
[1765781769428,32.06572465,3140.1,3140.0,0.001]
[1765781770115,33.06572465,3140.1,3140.0,0.001]
[1765781770737,16.83268565,3140.1,3140.0,0.001]
[1765781771235,5.40571065,3140.1,3140.0,0.4711]
[1765781771598,11.74066265,3140.1,3140.0,0.001]
[1765781772126,33.28458965,3140.1,3140.0,0.001]
[1765781772829,27.44506065,3140.1,3140.0,0.001]
[1765781773006,27.09717565,3140.1,3140.0,0.001]
[1765781773532,5.40571065,3140.1,3140.0,0.4711]
[1765781773732,5.40571065,3140.1,3140.0,0.9699]
[1765781774123,5.40571065,3140.1,3140.0,0.4711]
[1765781774906,5.00020665,3140.1,3140.0,0.4711]
[1765781775106,5.40571065,3140.1,3140.0,0.4711]
[1765781776818,4.89971065,3140.1,3140.0,0.4711]
[1765781777020,9.91811595,3140.1,3140.0,0.9699]
[1765781777314,0.002,3140.3,3140.0,0.9699]
[1765781777533,0.002,3140.3,3140.2,0.6263]
[1765781777739,0.508,3140.3,3140.2,0.6263]
[1765781777933,0.508,3140.3,3140.2,1.1251]
[1765781778241,0.002,3140.3,3140.2,1.1251]
[1765781778446,0.508,3140.3,3140.2,1.1251]
[1765781778648,0.002,3140.3,3140.2,1.1251]
[1765781778861,0.508,3140.3,3140.2,1.1251]
[1765781779149,0.002,3140.3,3140.2,1.1251]
[1765781779321,0.507,3140.3,3140.2,1.1251]
[1765781780919,0.51658635,3140.3,3140.2,1.1251]
[1765781781117,3.70099548,3140.3,3140.2,1.1251]
[1765781781323,0.51658635,3140.3,3140.2,1.1251]
[1765781783435,3.70099548,3140.3,3140.2,1.1251]
[1765781795953,3.70099548,3140.3,3140.1,0.001]
[1765781796153,3.70099548,3140.3,3140.2,0.6507]
[1765781796341,3.70099548,3140.3,3140.2,1.1407]
[1765781797663,0.002,3140.3,3140.2,0.6507]
[1765781797877,0.507,3140.3,3140.2,1.1407]
[1765781798037,0.002,3140.3,3140.2,1.1407]
[1765781798230,0.507,3140.3,3140.2,1.1407]
[1765781800561,0.002,3140.3,3140.2,1.1407]
[1765781800861,0.507,3140.3,3140.2,1.1407]
[1765781801659,0.002,3140.3,3140.2,1.1407]
[1765781801832,0.507,3140.3,3140.2,1.69326464]
[1765781802230,0.507,3140.3,3140.2,1.1407]
[1765781805763,0.002,3140.3,3140.2,4.32521054]
[1765781805971,0.507,3140.3,3140.2,4.32521054]
[1765781808277,0.002,3140.3,3140.2,4.32521054]
[1765781808566,0.002,3140.3,3140.2,5.51460618]
[1765781809277,0.002,3140.3,3140.2,2.33009564]
[1765781809572,0.002,3140.3,3140.2,1.1407]
[1765781809870,0.002,3140.3,3140.2,4.32521054]
[1765781813928,0.002,3140.3,3140.2,1.1407]
[1765781815810,0.002,3140.3,3140.2,4.32521054]
[1765781816305,0.002,3140.3,3140.2,1.1407]
[1765781818118,0.405504,3139.9,3139.6,0.001]
[1765781818283,0.467,3140.3,3139.6,0.001]
[1765781818284,0.505,3139.8,3139.6,0.001]
[1765781818492,0.002,3140.3,3139.6,0.4948]
[1765781818493,0.509,3140.3,3139.6,0.4948]
[1765781818785,0.505,3140.2,3139.8,0.4938]
[1765781818987,0.505,3140.2,3140.1,0.001]
[1765781819187,0.505,3140.2,3140.1,0.4641]
[1765781820415,3.19608656,3140.3,3140.1,0.4641]
[1765781820619,0.505,3140.2,3140.1,0.4641]
[1765781820990,3.19599784,3140.3,3140.1,0.4641]
[1765781821189,3.19599784,3140.3,3140.2,0.4631]
[1765781821190,0.01158635,3140.3,3140.2,0.4631]
[1765781821408,0.507,3140.3,3140.2,0.4631]
[1765781821621,0.507,3140.3,3140.2,0.9569]
[1765781821988,0.507,3140.3,3140.1,0.001]
[1765781821989,0.9722,3140.3,3140.1,0.001]
[1765781822189,0.47478635,3140.2,3140.1,0.001]
[1765781823026,0.00958635,3140.2,3140.1,0.4641]
[1765781823202,0.51458635,3140.2,3140.1,0.4641]
[1765781823403,1.44478635,3140.2,3140.1,0.001]
[1765781823624,1.90886561,3140.2,3140.1,0.001]
[1765781823830,5.09337615,3140.2,3140.1,0.001]
[1765781827833,4.58837615,3140.2,3140.1,0.001]
[1765781828147,5.09337615,3140.2,3140.1,0.001]
[1765781828347,4.58837615,3140.2,3140.1,0.001]
[1765781828647,5.09337615,3140.2,3140.1,0.00099904]
[1765781829017,4.58837615,3140.2,3140.1,0.00099904]
[1765781829250,5.09337615,3140.2,3140.1,0.00099904]
[1765781830346,4.58837615,3140.2,3140.1,0.00099904]
[1765781830530,5.09337615,3140.2,3140.1,0.00099904]
[1765781832219,5.09537615,3140.2,3140.1,0.00099904]
[1765781833459,5.50088015,3140.2,3140.1,0.00099904]
[1765781833821,5.12344317,3140.2,3140.1,0.00099904]
[1765781834022,5.62844317,3140.2,3140.1,0.00099904]
[1765781834531,5.50088015,3140.2,3140.1,0.00099904]
[1765781838754,11.83088015,3140.2,3140.1,0.00099904]
[1765781842931,43.7528581,3140.2,3140.1,0.00099904]
[1765781843142,43.88043454,3140.2,3140.1,0.00099904]
[1765781843357,39.49831088,3140.2,3140.1,0.00099904]
[1765781844559,43.88043454,3140.2,3140.1,0.00099904]
[1765781844747,39.49831088,3140.2,3140.1,0.00099904]
[1765781844941,43.88043454,3140.2,3140.1,0.00099904]
[1765781846052,16.92105554,3140.2,3140.1,0.00099904]
[1765781846257,43.88043454,3140.2,3140.1,0.00099904]
[1765781847060,43.88542886,3140.2,3140.1,0.00099904]
[1765781849876,48.27254684,3140.2,3140.1,0.00099904]
[1765781851936,43.88542886,3140.2,3140.1,0.00099904]
[1765781852743,48.27254684,3140.2,3140.1,0.00099904]
[1765781852942,43.88542886,3140.2,3140.1,0.00099904]
[1765781853153,48.27254684,3140.2,3140.1,0.00099904]
[1765781855402,51.62754684,3140.2,3140.1,0.00099904]
[1765781856479,51.12254684,3140.2,3140.1,0.00099904]
[1765781856679,43.88542886,3140.2,3140.1,0.00099904]
[1765781857002,43.38042886,3140.2,3140.1,0.00099904]
[1765781857299,10.49517615,3140.2,3140.1,0.46199904]
[1765781857497,10.61157218,3140.2,3140.1,0.46199904]
[1765781858682,15.40419416,3140.2,3140.1,0.46199904]
[1765781858882,20.47759416,3140.2,3140.1,0.46199904]
[1765781859178,17.30077216,3140.2,3140.1,0.46199904]
[1765781859382,17.80577216,3140.2,3140.1,0.46199904]
[1765781859696,19.91869513,3140.2,3140.1,0.46199904]
[1765781859884,19.91889513,3140.2,3140.1,0.46199904]
[1765781860083,17.51711713,3140.2,3140.1,0.46199904]
[1765781861507,13.12999915,3140.2,3140.1,0.46199904]
[1765781862513,13.61189915,3140.2,3140.1,0.00099904]
[1765781863198,7.28189915,3140.2,3140.1,0.00099904]
[1765781863399,5.16897618,3140.2,3140.1,0.00099904]
[1765781864209,5.20105125,3140.2,3140.1,0.00099904]
[1765781865193,5.68545125,3140.2,3140.1,0.00099904]
[1765781866286,32.64483025,3140.2,3140.1,0.00099904]
[1765781866486,32.74031616,3140.2,3140.1,0.00099904]
[1765781867210,13.3762978,3140.2,3140.1,0.00099904]
[1765781867511,37.12607367,3140.2,3140.1,0.00099904]
[1765781869713,36.64167367,3140.2,3140.1,0.00099904]
[1765781869916,18.35980116,3140.2,3140.1,0.00099904]
[1765781870110,18.84420116,3140.2,3140.1,0.00099904]
[1765781870312,32.23531616,3140.2,3140.1,0.00099904]
[1765781870519,35.94991929,3140.2,3140.1,0.00099904]
[1765781874135,39.30491929,3140.2,3140.1,0.00099904]
[1765781874305,35.44491929,3140.2,3140.1,0.00099904]
[1765781874505,35.94991929,3140.2,3140.1,0.00099904]
[1765781877233,39.8512768,3140.2,3140.1,0.00099904]
[1765781877437,13.3893978,3140.2,3140.1,0.00099904]
[1765781877609,37.13917367,3140.2,3140.1,0.00099904]
[1765781878545,10.17979467,3140.2,3140.1,0.00099904]
[1765781878850,37.13917367,3140.2,3140.1,0.00099904]
[1765781880946,36.63417367,3140.2,3140.1,0.00099904]
[1765781881147,37.13917367,3140.2,3140.1,0.00099904]
[1765781881717,40.3487768,3140.2,3140.1,0.00099904]
[1765781884750,39.8437768,3140.2,3140.1,0.00099904]
[1765781885046,40.3487768,3140.2,3140.1,0.00099904]
[1765781885246,39.8512768,3140.2,3140.1,0.00099904]
[1765781885446,39.8437768,3140.2,3140.1,0.00099904]
[1765781885657,40.3487768,3140.2,3140.1,0.00099904]
[1765781886956,35.96301929,3140.2,3140.1,0.00099904]
[1765781888260,39.31801929,3140.2,3140.1,0.00099904]
[1765781890161,35.96301929,3140.2,3140.1,0.00099904]
[1765781890364,40.34954937,3140.2,3140.1,0.00099904]
[1765781891426,43.70454937,3140.2,3140.1,0.00099904]
[1765781892265,43.70454937,3140.2,3139.7,0.001]
[1765781892266,6.73250496,3139.8,3139.7,0.001]
[1765781892464,35.37040446,3139.8,3139.7,0.001]
[1765781892663,35.37999081,3139.8,3139.7,0.001]
[1765781892897,36.04529081,3139.8,3139.7,0.001]
[1765781893405,35.56609081,3139.8,3139.7,0.4937]
[1765781893801,35.56609081,3139.8,3139.7,0.001]
[1765781894098,39.23270704,3139.8,3139.7,0.001]
[1765781894787,38.75100704,3139.8,3139.7,0.4937]
[1765781895098,38.24600704,3139.8,3139.7,0.4937]
[1765781895277,25.34781204,3139.8,3139.7,0.4937]
[1765781895967,30.37538496,3139.7,3139.6,0.001]
[1765781896173,32.5378214,3139.7,3139.6,0.001]
[1765781896564,31.6770214,3139.7,3139.6,0.001]
[1765781896764,32.1820214,3139.7,3139.6,0.4937]
[1765781896977,32.9370124,3139.7,3139.6,0.4937]
[1765781897285,12.1694664,3139.7,3139.6,0.4937]
[1765781897468,3.76549296,3139.7,3139.6,0.4937]
[1765781897786,4.67599696,3139.7,3139.6,0.9779]
[1765781898179,4.27049296,3139.7,3139.6,0.9779]
[1765781898478,24.41670038,3139.7,3139.6,0.001]
[1765781898678,20.67188331,3139.7,3139.6,0.001]
[1765781898884,23.54558627,3139.7,3139.6,0.001]
[1765781899064,14.13257127,3139.7,3139.6,0.4937]
[1765781899487,21.63246427,3139.7,3139.6,0.4937]
[1765781900462,21.88120727,3139.7,3139.6,0.4937]
[1765781901270,22.37490727,3139.7,3139.6,0.4937]
[1765781901585,22.12666427,3139.7,3139.6,0.4937]
[1765781902460,21.45789527,3139.7,3139.6,0.4937]
[1765781902659,21.20965227,3139.7,3139.6,0.4937]
[1765781902873,21.20965227,3139.7,3139.6,0.001]
[1765781903063,21.69135227,3139.7,3139.6,0.001]
[1765781903587,24.62348727,3139.7,3139.6,0.001]
[1765781904491,9.03218627,3139.7,3139.6,0.001]
[1765781904787,23.89761131,3139.7,3139.6,0.001]
[1765781905195,12.02356031,3139.7,3139.6,0.9779]
[1765781905373,12.02356031,3139.7,3139.6,0.4937]
[1765781905569,10.39589231,3139.7,3139.6,0.4937]
[1765781906092,7.84665831,3139.7,3139.6,0.9779]
[1765781906592,7.86011231,3139.7,3139.6,0.9779]
[1765781906797,7.20321631,3139.7,3139.6,0.9779]
[1765781907299,8.24202956,3139.7,3139.6,0.9779]
[1765781907597,15.01998856,3139.7,3139.6,0.9779]
[1765781907766,15.01998856,3139.7,3139.6,0.4937]
[1765781908696,19.53401556,3139.7,3139.6,0.4937]
[1765781908897,20.03321556,3139.7,3139.6,0.001]
[1765781909795,34.15437556,3139.7,3139.6,0.001]
[1765781911203,40.48137652,3139.7,3139.6,0.001]
[1765781911375,20.46360352,3139.7,3139.6,0.001]
[1765781911700,40.48277652,3139.7,3139.6,0.001]
[1765781916185,43.83777652,3139.7,3139.6,0.001]
[1765781917889,31.30035829,3139.6,3139.5,0.001]
[1765781918090,35.77016142,3139.6,3139.5,0.001]
[1765781918291,35.26516142,3139.6,3139.5,0.001]
[1765781918502,35.89778752,3139.6,3139.5,0.001]
[1765781919625,7.57121327,3140.1,3139.5,0.001]
[1765781919626,6.32900096,3140.3,3139.6,0.464]
[1765781919799,0.002,3140.3,3140.1,0.464]
[1765781920001,0.507,3140.3,3140.2,0.464]
[1765781920519,0.507,3140.3,3140.2,0.9373]
[1765781922487,3.69140913,3140.3,3140.2,0.9373]
[1765781924236,0.507,3140.3,3140.2,0.464]
[1765781924839,0.507,3140.3,3140.2,0.9373]
[1765781925209,0.507,3140.3,3139.0,0.58147529]
[1765781925409,0.00958635,3139.7,3139.1,3.18662645]
[1765781925703,0.00958635,3139.7,3139.2,0.37681017]
[1765781926408,0.00958635,3139.5,3139.2,0.37681017]
[1765781926807,0.51458635,3139.5,3139.2,0.37681017]
[1765781927745,0.51458635,3139.5,3139.0,2.90902152]
[1765781929213,0.51458635,3139.5,3139.1,0.001]
[1765781929408,0.51458635,3139.5,3139.2,0.29100215]
[1765781933173,0.51458635,3139.5,3139.1,0.001]
[1765781933664,0.00958635,3139.3,3139.1,0.001]
[1765781935172,0.51458635,3139.5,3139.1,0.001]
[1765781936169,0.002,3139.7,3139.4,4.38543037]
[1765781936338,0.505,3139.6,3139.4,4.38543037]
[1765781936545,0.505,3139.6,3139.4,4.82397341]
[1765781936960,0.002,3139.5,3139.4,4.82397341]
[1765781939067,0.002,3139.5,3139.4,0.43854304]
[1765781940039,0.01158635,3139.5,3139.1,0.001]
[1765781940437,0.01158635,3139.5,3139.1,3.18660761]
[1765781941274,0.01158635,3139.5,3139.1,0.001]
[1765781943069,0.00958635,3139.3,3139.1,0.001]
[1765781943275,0.505,3139.2,3139.1,0.001]
[1765781948509,0.002,3139.5,3139.1,0.03285626]
[1765781948811,0.002,3139.5,3139.4,4.38543037]
[1765781949798,0.002,3139.5,3139.2,4.82735903]
[1765781950410,0.002,3139.5,3139.2,8.01281186]
[1765781952186,0.002,3139.5,3139.2,3.62738149]
[1765781954115,0.002,3139.5,3139.2,8.01281186]
[1765781954303,0.002,3139.5,3139.3,0.80138119]
[1765781959518,0.002,3139.5,3139.2,8.01281186]
[1765781959719,0.002,3139.5,3139.3,3.18541752]
[1765781960013,0.002,3139.5,3139.2,4.82735903]
[1765781960014,0.002,3139.5,3139.2,3.62742459]
[1765781961141,0.002,3139.5,3139.2,0.44192866]
[1765781961325,0.002,3139.5,3139.1,7.57202881]
[1765781966247,0.002,3139.5,3139.1,4.38643037]
[1765781966470,0.505,3139.4,3139.1,4.38643037]
[1765781966752,0.505,3139.4,3139.1,0.001]
[1765781967816,0.00958635,3139.3,3139.1,0.001]
[1765781968229,0.51458635,3139.3,3139.1,3.18662645]
[1765781968554,0.51458635,3139.3,3139.1,0.001]
[1765781969846,0.98968635,3139.3,3139.1,0.001]
[1765781970045,0.51658635,3139.3,3139.1,0.001]
[1765781970248,0.4975,3139.2,3139.1,0.001]
[1765781970435,0.51658635,3139.3,3139.1,0.001]
[1765781970842,0.505,3139.2,3139.1,0.001]
[1765781978364,0.01158635,3139.3,3139.1,0.001]
[1765781978569,0.51658635,3139.3,3139.1,0.001]
[1765781992568,0.99168635,3139.3,3139.1,0.001]
[1765781996372,0.4975,3139.2,3139.1,0.001]
[1765781996673,0.9726,3139.2,3139.1,0.001]
[1765781997242,0.4975,3139.2,3139.1,0.001]
[1765781997466,0.51658635,3139.3,3139.1,0.001]
[1765781997668,1.01578635,3139.3,3139.1,0.001]
[1765781998388,0.002,3139.3,3139.1,0.001]
[1765781998804,0.002,3139.3,3139.2,0.43878535]
[1765782000689,0.002,3139.3,3139.2,3.65616556]
[1765782001089,0.002,3139.3,3139.2,4.14173447]
[1765782001295,0.002,3139.3,3139.2,9.13991849]
[1765782001593,0.002,3139.5,3139.3,0.58047529]
[1765782001798,0.002,3139.5,3139.4,1.86658425]
[1765782001994,0.002,3139.5,3139.4,2.80725514]
[1765782002197,0.002,3139.7,3139.6,4.38585349]
[1765782002397,0.002,3139.7,3139.6,4.84095142]
[1765782002695,0.002,3140.5,3139.6,4.84095142]
[1765782002696,0.002,3140.5,3139.6,23.43883364]
[1765782002998,0.002,3140.5,3140.3,0.58047529]
[1765782003168,0.002,3140.5,3140.4,0.505]
[1765782003494,0.002,3140.5,3140.4,5.47132878]
[1765782003694,0.002,3140.5,3140.4,4.96632878]
[1765782004190,0.002,3140.5,3140.4,5.48375293]
[1765782004394,0.002,3140.5,3140.4,6.09537696]
[1765782004601,0.002,3140.5,3140.4,9.27968469]
[1765782005301,0.002,3140.5,3140.4,9.27323431]
[1765782007130,0.002,3140.5,3140.4,8.75581016]
[1765782011032,0.002,3140.5,3140.4,9.27323431]
[1765782011760,0.002,3140.8,3140.5,1.50340344]
[1765782012040,0.002,3140.8,3140.7,4.9598784]
[1765782012243,0.002,3140.8,3140.7,5.4648784]
[1765782012442,0.002,3140.8,3140.7,0.58047529]
[1765782012736,0.002,3140.8,3140.7,3.76447885]
[1765782015562,0.957,3140.8,3140.7,3.76447885]
[1765782015858,0.002,3140.8,3140.7,3.76447885]
[1765782019746,0.002,3140.8,3140.7,5.05496522]
[1765782022085,0.002,3140.8,3140.7,5.08680525]
[1765782024468,0.002,3140.8,3140.7,5.58800525]
[1765782024766,0.002,3140.8,3140.7,6.09200525]
[1765782025267,0.002,3140.8,3140.7,6.46566922]
[1765782029355,0.002,3140.8,3140.7,6.06016522]
[1765782035165,0.002,3140.8,3140.7,6.09200525]
[1765782036103,0.002,3140.8,3140.7,5.51152996]
[1765782036305,0.002,3140.8,3140.7,5.47968993]
[1765782036682,0.002,3140.8,3140.7,9.85909304]
[1765782037308,0.002,3140.8,3140.7,10.84507233]
[1765782039998,0.002,3140.8,3140.7,10.43956833]
[1765782047240,0.4529,3141.5,3140.8,0.58047529]
[1765782047409,0.4529,3141.5,3140.9,8.95703784]
[1765782047609,0.4529,3141.5,3140.9,8.92519984]
[1765782047908,0.4529,3141.5,3140.9,9.37809984]
[1765782050012,0.002,3141.5,3140.9,14.16264567]
[1765782052413,0.002,3141.5,3140.9,14.74312096]
[1765782052611,0.002,3141.5,3140.9,15.26054511]
[1765782052810,0.002,3141.5,3141.0,0.405504]
[1765782053010,0.002,3141.5,3141.4,9.74406295]
[1765782053217,0.002,3141.5,3141.4,5.88244527]
[1765782053509,0.002,3141.5,3141.4,5.36502112]
[1765782053912,0.002,3141.5,3141.4,5.49244232]
[1765782054516,0.002,3141.5,3141.4,8.67573639]
[1765782054716,0.002,3141.5,3141.4,9.86165093]
[1765782055618,1e-08,3141.6,3141.5,0.58047529]
[1765782055818,1e-08,3141.6,3141.5,1.52181121]
[1765782057028,1e-08,3141.6,3141.5,5.2224281]
[1765782057328,1e-08,3141.6,3141.5,6.63223807]
[1765782057528,1e-08,3141.6,3141.5,6.60040615]
[1765782059323,0.002,3141.9,3141.5,6.60040615]
[1765782059324,1e-08,3141.9,3141.5,14.16264072]
[1765782059633,1e-08,3141.9,3141.8,9.74406295]
[1765782059838,1e-08,3141.9,3141.8,10.2614871]